bitfinex-derivatives/quotes_ETHF0:USTF0_20251012
["timestamp","ask_amount","ask_price","bid_price","bid_amount"]
[1760297631787,0.9486,4134.8,4133.8,13.1244421]
[1760297631788,0.5391,4134.4,4134.1,4.59627905]
[1760297631990,0.9486,4134.4,4134.1,4.59627905]
[1760297632186,1.38366,4134.4,4134.1,3.2078]
[1760297632686,4.59146,4134.4,4133.8,11.53447905]
[1760297632886,4.59146,4134.4,4133.8,1.38847905]
[1760297633477,4.59146,4134.4,4133.3,1.38847905]
[1760297633478,0.9486,4133.4,4133.3,1.38847905]
[1760297633786,1.38377,4133.4,4133.3,1.38847905]
[1760297634578,1.38664367,4133.4,4133.3,1.39113301]
[1760297634983,1.38664367,4133.4,4133.3,0.00265396]
[1760297636385,4.59444367,4133.4,4133.3,0.00265396]
[1760297636783,0.4095,4132.6,4132.5,3.2078]
[1760297636980,0.8389,4132.5,4132.4,0.2701]
[1760297637182,1.1119,4132.5,4132.4,0.2701]
[1760297637782,1.1119,4132.5,4132.4,0.27261371]
[1760297637988,1.1119,4132.5,4132.4,0.52731371]
[1760297638188,1.54712,4133.0,4132.9,0.5248]
[1760297638486,1.54712,4133.0,4132.9,1.38847905]
[1760297639480,0.97435,4132.6,4132.5,0.2701]
[1760297639681,1.38385,4132.6,4132.5,0.2701]
[1760297639880,1.38385,4132.6,4132.5,1.65857905]
[1760297640284,1.38385,4132.6,4132.4,0.00251371]
[1760297640285,0.1633,4132.5,4132.4,0.00251371]
[1760297640486,1.1119,4132.5,4132.4,0.00251371]
[1760297640889,1.1119,4132.5,4132.4,0.52731371]
[1760297642497,3.2078,4132.9,4132.8,1.30593]
[1760297642693,0.9613,4133.3,4133.2,0.5257]
[1760297642994,0.6862,4133.3,4133.2,2.25227905]
[1760297643389,0.6862,4133.3,4133.2,1.91417905]
[1760297643590,0.9613,4133.3,4133.1,0.43519]
[1760297643794,1.39648,4133.3,4133.2,1.65017905]
[1760297643997,0.6862,4133.3,4133.2,2.25227905]
[1760297644387,0.6862,4133.3,4133.2,1.91417905]
[1760297644694,0.9613,4133.3,4133.2,1.91417905]
[1760297645193,1.39648,4133.3,4133.2,1.91417905]
[1760297645489,1.39648,4133.3,4133.2,2.34936905]
[1760297645692,0.00287367,4133.4,4133.3,1.29898]
[1760297650596,0.41617367,4133.4,4133.3,1.29898]
[1760297651196,0.00287367,4133.4,4133.3,1.29898]
[1760297655895,0.2729,4134.4,4134.3,0.5257]
[1760297656202,0.548,4134.4,4134.3,0.5257]
[1760297656399,0.9613,4134.4,4134.3,0.5257]
[1760297656600,1.39636,4134.4,4134.3,0.5257]
[1760297656795,0.96365174,4134.4,4133.8,3.2078]
[1760297657001,1.39641,4133.9,4133.8,3.2078]
[1760297659502,1.39648,4133.3,4133.2,3.4695]
[1760297659698,1.39648,4133.3,4132.7,3.3165421]
[1760297659699,0.43523,4132.8,4132.7,3.2078]
[1760297659903,1.39653,4132.8,4132.7,3.2078]
[1760297660504,1.14396,4132.5,4132.4,0.26421371]
[1760297660801,1.55726,4132.5,4132.4,0.26421371]
[1760297661195,0.98319,4133.2,4133.1,0.2617]
[1760297661400,0.7087,4133.0,4132.9,3.2078]
[1760297661598,0.4336,4132.5,4132.4,8.52663352]
[1760297661797,0.8469,4132.5,4132.4,8.52663352]
[1760297662003,0.4133,4132.9,4132.8,1.03733]
[1760297662202,0.8485,4133.1,4132.8,0.96093]
[1760297662400,0.8485,4133.1,4133.0,0.5257]
[1760297662597,1.1214,4133.1,4133.0,0.5257]
[1760297663108,0.6862,4133.1,4133.0,3.7335]
[1760297663406,0.6862,4133.1,4133.0,0.5257]
[1760297664600,0.9613,4133.1,4133.0,0.5257]
[1760297664903,0.9613,4133.1,4133.0,0.2617]
[1760297665099,0.9613,4133.1,4132.8,0.43523]
[1760297665100,0.98322,4132.9,4132.8,0.2617]
[1760297665294,0.4133,4132.8,4132.5,3.2078]
[1760297665498,0.6862,4132.6,4132.5,4.16876]
[1760297665906,0.6862,4132.6,4132.5,4.50686]
[1760297667199,0.4336,4133.0,4132.9,0.2617]
[1760297667398,0.8469,4133.0,4132.9,0.5257]
[1760297668402,1.28211,4133.0,4132.9,0.5257]
[1760297668801,1.55721,4133.0,4132.9,0.5257]
[1760297669307,1.56721,4133.0,4132.9,0.2617]
[1760297669602,0.2751,4132.8,4132.5,3.2078]
[1760297669800,1.55726,4132.5,4132.4,0.26421371]
[1760297670209,1.122,4132.5,4132.4,0.96348371]
[1760297671102,0.8469,4132.5,4132.4,0.96348371]
[1760297671800,1.122,4132.5,4132.4,0.96348371]
[1760297672597,1.55726,4132.5,4132.4,0.26421371]
[1760297672998,1.55726,4132.5,4132.4,0.00251371]
[1760297676608,1.55726,4132.5,4132.4,0.25821371]
[1760297676919,0.4133,4132.5,4132.4,1.29368371]
[1760297677804,1.26316,4132.5,4132.4,0.53411371]
[1760297678006,1.53296,4132.5,4132.4,0.96938371]
[1760297679708,1.0977,4132.5,4132.4,0.96938371]
[1760297680308,0.4133,4132.5,4132.4,1.29368371]
[1760297680510,1.07344,4132.7,4132.6,0.5316]
[1760297681007,1.34324,4132.7,4132.6,0.5316]
[1760297683011,1.34324,4132.7,4132.6,0.96685]
[1760297684419,1.34324,4132.7,4132.6,0.5316]
[1760297685905,1.50066,4132.5,4132.4,0.00251371]
[1760297688406,1.50066,4132.5,4132.4,0.50361371]
[1760297688813,1.50066,4132.5,4132.4,0.00251371]
[1760297689308,0.01,4133.0,4132.9,1.25562]
[1760297689614,0.01,4133.0,4132.9,6.0705946]
[1760297689911,0.6662,4133.0,4132.9,4.46342]
[1760297690315,0.6662,4133.0,4132.9,4.14412]
[1760297690510,0.8158,4133.0,4132.9,4.14412]
[1760297690911,0.8158,4133.0,4132.9,3.7089]
[1760297697012,0.8158,4133.0,4132.9,4.0282]
[1760297697614,0.8158,4133.0,4132.9,4.46342]
[1760297701013,0.8158,4133.0,4132.9,4.14412]
[1760297701610,0.8158,4133.0,4132.9,4.46342]
[1760297703413,1.51061,4133.0,4132.9,3.2078]
[1760297703712,0.8158,4133.0,4132.9,4.0472]
[1760297704213,1.25101,4133.0,4132.9,3.7365]
[1760297704916,0.4043,4133.0,4132.9,4.48242]
[1760297705114,0.1496,4134.5,4133.7,1.01494]
[1760297705115,3.595,4133.8,4133.7,1.01494]
[1760297705315,0.3872,4134.2,4134.1,0.5287]
[1760297705518,3.2078,4134.3,4134.1,0.8394]
[1760297705711,0.3872,4134.2,4134.1,1.27449]
[1760297705910,0.6339,4134.2,4134.1,1.27449]
[1760297706207,0.6339,4134.2,4134.1,0.8394]
[1760297706403,0.8929,4134.2,4134.1,0.5287]
[1760297706607,1.47641,4134.0,4133.9,0.5287]
[1760297707709,1.47641,4134.0,4133.9,0.8394]
[1760297707910,1.21741,4134.0,4133.9,0.8394]
[1760297708312,1.21741,4134.0,4133.9,0.5287]
[1760297708512,0.43505,4134.5,4134.3,0.8394]
[1760297709113,0.38955174,4134.4,4134.3,0.8394]
[1760297709920,3.2078,4134.8,4134.7,1.27203]
[1760297710115,3.2078,4135.4,4135.1,0.837]
[1760297710314,3.2078,4135.4,4135.3,0.837]
[1760297710616,0.43493,4135.7,4135.4,0.43496]
[1760297710815,0.43493,4135.7,4135.6,0.837]
[1760297711021,0.38990298,4135.7,4135.6,0.837]
[1760297711320,0.00270298,4135.7,4135.6,0.837]
[1760297712514,0.63660298,4135.7,4135.6,0.5287]
[1760297713222,0.89560298,4135.7,4135.6,0.5287]
[1760297714109,0.00270298,4135.7,4135.6,0.837]
[1760297714516,3.2078,4136.4,4135.6,1.92433]
[1760297714714,0.01,4136.5,4136.3,1.27186]
[1760297714909,0.01,4136.5,4136.4,0.837]
[1760297715516,0.01288863,4136.5,4136.4,0.837]
[1760297716622,0.40008863,4136.5,4136.4,0.837]
[1760297718016,0.01288863,4136.5,4136.4,0.837]
[1760297718520,0.01288863,4136.5,4136.4,4.0448]
[1760297718919,3.2078,4137.0,4136.9,0.8242]
[1760297719321,0.43476,4137.3,4137.1,0.2955]
[1760297719522,0.43476,4137.3,4137.2,0.8242]
[1760297720019,0.00230035,4137.3,4137.2,0.8242]
[1760297725726,0.43706035,4137.3,4137.2,0.8242]
[1760297726629,1.07096035,4137.3,4137.2,0.8242]
[1760297727029,0.43706035,4137.3,4137.2,0.8242]
[1760297727229,0.82426035,4137.3,4137.2,0.8242]
[1760297727433,0.43706035,4137.3,4137.2,0.8242]
[1760297728731,0.44706035,4137.3,4137.2,0.8242]
[1760297730334,0.01230035,4137.3,4137.2,1.25897]
[1760297730533,0.01230035,4137.3,4137.2,0.8242]
[1760297730932,0.44706035,4137.3,4137.2,0.8242]
[1760297732027,0.5057,4136.7,4136.6,0.2691]
[1760297732228,1.32772,4136.7,4136.6,0.5287]
[1760297732428,1.06872,4136.7,4136.6,0.8242]
[1760297733233,1.06872,4136.7,4136.6,0.5287]
[1760297733434,0.43482,4136.7,4136.6,0.811]
[1760297733629,0.43482,4136.7,4136.3,3.2078]
[1760297733630,0.01230035,4137.3,4137.2,0.8105]
[1760297735831,0.40050035,4137.3,4137.2,0.8105]
[1760297736428,0.1436,4136.5,4135.8,3.2078]
[1760297736632,1.4754,4136.0,4135.9,0.0442]
[1760297737441,0.8969,4135.9,4135.8,3.2078]
[1760297737839,1.08725,4135.5,4135.4,0.0021311]
[1760297738035,1.47545,4135.5,4135.4,0.0242311]
[1760297738239,1.47545,4135.5,4135.4,0.0463311]
[1760297738641,1.47545,4135.5,4135.4,0.0021311]
[1760297739542,0.96675,4135.5,4135.4,0.0463311]
[1760297739749,0.82314,4135.6,4135.4,3.2679311]
[1760297739937,0.5318,4135.5,4135.4,3.2541311]
[1760297741153,4.29495,4136.4,4135.7,0.43492]
[1760297741154,3.596,4136.4,4135.7,0.43492]
[1760297741352,3.596,4136.4,4135.8,0.0138]
[1760297741852,0.43487,4136.3,4135.8,0.0138]
[1760297742051,0.43487,4136.3,4135.8,0.43491]
[1760297742349,0.82307,4136.3,4135.9,0.0138]
[1760297742648,0.43488,4136.2,4135.8,0.43491]
[1760297742854,0.43488,4136.1,4135.9,0.0138]
[1760297743143,0.43488,4136.1,4135.8,0.43491]
[1760297743749,0.43488,4136.1,4136.0,0.047]
[1760297744846,3.596,4136.4,4136.0,0.047]
[1760297744847,0.43487,4136.3,4136.0,0.047]
[1760297745155,0.79317,4136.3,4136.2,0.0358]
[1760297745647,0.79317,4136.3,4136.2,0.047]
[1760297746252,0.79317,4136.3,4136.2,0.0358]
[1760297747156,0.6187,4136.3,4136.2,0.0358]
[1760297747359,0.3583,4136.3,4136.2,0.0358]
[1760297747553,0.6187,4136.3,4136.2,0.0358]
[1760297748054,0.3583,4136.3,4136.2,0.0358]
[1760297748451,0.69529,4136.1,4136.0,0.0358]
[1760297748653,1.05359,4136.1,4136.0,0.0358]
[1760297748855,3.2078,4136.9,4136.1,0.0112]
[1760297749044,3.6426,4136.9,4136.8,0.0358]
[1760297749251,3.6426,4136.9,4136.8,0.047]
[1760297753252,3.2078,4136.9,4136.8,0.047]
[1760297753450,3.6426,4136.9,4136.8,0.047]
[1760297754053,4.0009,4136.9,4136.8,0.047]
[1760297754352,4.0009,4136.9,4136.8,0.0358]
[1760297754851,4.2613,4136.9,4136.8,0.0179]
[1760297755058,4.2613,4136.9,4136.0,3.2436]
[1760297755059,0.43488,4136.1,4136.0,3.2436]
[1760297755250,0.1478,4136.5,4136.4,0.0358]
[1760297756057,0.58264,4136.5,4136.4,0.047]
[1760297756762,0.43484,4136.5,4136.4,0.047]
[1760297759558,0.7931,4136.9,4136.8,0.0358]
[1760297760263,0.1478,4136.5,4136.2,3.64266]
[1760297760465,0.43484,4136.5,4136.4,0.047]
[1760297760952,0.43486,4136.4,4136.2,3.2078]
[1760297761157,0.79316,4136.3,4136.2,3.2436]
[1760297761358,1.31066,4136.3,4136.2,3.2257]
[1760297761969,0.79316,4136.3,4136.2,3.2436]
[1760297762261,0.79316,4136.3,4136.2,3.2548]
[1760297762459,0.79316,4136.3,4136.2,3.2436]
[1760297763160,1.04206,4136.3,4136.2,3.2436]
[1760297763358,0.79316,4136.3,4136.2,3.2436]
[1760297763764,1.04206,4136.3,4136.2,3.2436]
[1760297764161,1.29916,4136.3,4136.2,3.2436]
[1760297765166,1.29916,4136.3,4136.2,3.217]
[1760297765956,1.29916,4136.3,4136.2,3.2124]
[1760297766158,1.29916,4136.3,4136.2,3.2078]
[1760297766758,1.04206,4136.3,4136.2,3.217]
[1760297766959,0.1478,4137.0,4136.2,3.217]
[1760297766960,0.3561,4136.8,4136.7,0.0046]
[1760297767262,0.43481,4136.8,4136.7,0.0121]
[1760297767460,1.03981,4136.8,4136.7,0.0092]
[1760297767659,1.29691,4136.8,4136.7,0.0092]
[1760297767865,1.29691,4136.8,4136.7,0.0046]
[1760297768059,0.1496,4136.5,4136.3,0.43486]
[1760297768264,0.79095,4136.4,4136.3,0.0092]
[1760297770656,1.03985,4136.4,4136.3,0.0092]
[1760297771058,0.79096,4136.3,4136.2,3.2078]
[1760297771264,1.29696,4136.3,4136.2,3.2078]
[1760297771971,1.29701,4135.8,4135.7,2.9784421]
[1760297772462,1.29701,4135.8,4135.6,3.2078]
[1760297772463,0.79102,4135.7,4135.6,4.60718456]
[1760297773066,1.03992,4135.7,4135.6,4.60428456]
[1760297773669,1.03992,4135.7,4135.6,3.217]
[1760297776666,1.03992,4135.7,4135.6,2.46474382]
[1760297776667,1.29702,4135.7,4135.6,2.46474382]
[1760297776869,1.29713,4134.7,4134.6,7.32551522]
[1760297777168,3.64282,4134.8,4134.0,4.80287238]
[1760297777357,3.64282,4134.8,4134.7,0.021]
[1760297777560,4.24782,4134.8,4134.7,0.016]
[1760297777756,4.24782,4134.8,4134.7,0.01858104]
[1760297777960,4.50492,4134.8,4134.7,0.00258104]
[1760297779262,0.43511,4133.9,4133.8,3.01038104]
[1760297779463,1.04011,4133.9,4133.8,3.02638104]
[1760297780170,0.605,4133.9,4133.8,3.02638104]
[1760297780370,0.60795063,4133.9,4133.8,3.02852147]
[1760297782662,0.35905063,4133.9,4133.8,3.03352147]
[1760297783059,0.60795063,4133.9,4133.8,3.02852147]
[1760297783268,0.86505063,4133.9,4133.8,3.02852147]
[1760297783870,0.86505063,4133.9,4133.8,3.01252147]
[1760297785267,0.86505063,4133.9,4133.8,3.02052147]
[1760297785668,1.30016063,4133.9,4133.8,3.02052147]
[1760297785872,1.30016063,4133.9,4133.8,3.01252147]
[1760297786074,1.30016063,4133.9,4133.8,0.00214043]
[1760297791070,0.79416063,4133.9,4133.8,0.01814043]
[1760297791276,1.04306063,4133.9,4133.8,0.01014043]
[1760297791477,1.30016063,4133.9,4133.8,0.01014043]
[1760297791677,0.79416063,4133.9,4133.8,0.01814043]
[1760297791878,0.35905063,4133.9,4133.8,0.01814043]
[1760297792578,1.04306063,4133.9,4133.8,0.01814043]
[1760297794678,1.29916063,4133.9,4133.8,0.01014043]
[1760297794978,1.29916063,4133.9,4133.8,0.00214043]
[1760297795572,0.86405063,4133.9,4133.8,0.47646043]
[1760297795778,0.86405063,4133.9,4133.8,0.51566043]
[1760297796175,1.29916063,4133.9,4133.8,0.51566043]
[1760297796674,0.00295063,4133.9,4133.8,2.14718059]
[1760297796879,0.37585063,4133.9,4133.8,2.14718059]
[1760297797869,0.00295063,4133.9,4133.8,2.14718059]
[1760297798075,0.37585063,4133.9,4133.8,2.12268059]
[1760297798379,0.87485063,4133.9,4133.8,2.04428059]
[1760297798574,0.87485063,4133.9,4133.8,2.08348059]
[1760297798776,0.87485063,4133.9,4133.8,2.12268059]
[1760297799081,0.61875063,4133.9,4133.8,2.12268059]
[1760297799771,0.61875063,4133.9,4133.8,1.68756059]
[1760297800178,0.61875063,4133.9,4133.8,2.12268059]
[1760297800479,0.61875063,4133.9,4133.8,1.68756059]
[1760297800873,0.61875063,4133.9,4133.8,2.12268059]
[1760297801279,0.37585063,4133.9,4133.8,2.14718059]
[1760297802180,0.37585063,4133.9,4133.8,0.08054043]
[1760297802776,0.37585063,4133.9,4133.8,0.10504043]
[1760297802976,0.37585063,4133.9,4133.8,0.54016043]
[1760297803985,0.00295063,4133.9,4133.8,0.54016043]
[1760297805984,0.00295063,4133.9,4131.8,0.0347]
[1760297805985,0.43533,4131.9,4131.8,0.0347]
[1760297806282,1.08816,4132.6,4132.3,0.0347]
[1760297806283,0.3804,4132.4,4132.3,0.0347]
[1760297806481,0.3804,4132.4,4132.3,0.0694]
[1760297806683,0.3804,4132.4,4132.3,2.12066713]
[1760297806883,0.3804,4132.4,4132.3,2.12305462]
[1760297807085,0.8774,4132.4,4132.3,0.03708749]
[1760297807882,0.8774,4132.4,4132.3,0.00238749]
[1760297814183,0.8774,4132.4,4131.0,1.08852]
[1760297814184,0.43535,4131.6,4128.0,14.49182151]
[1760297814387,0.1574,4130.5,4129.9,2.12826713]
[1760297814582,3.2078,4130.9,4130.4,0.077]
[1760297814777,0.1574,4131.0,4130.8,3.2848]
[1760297814982,0.3804,4130.9,4130.8,3.3089]
[1760297815391,0.38319083,4130.9,4130.8,3.28789565]
[1760297815690,0.38319083,4130.9,4130.8,5.33916278]
[1760297815691,0.00279083,4130.9,4130.8,5.33916278]
[1760297815988,0.00279083,4130.9,4130.8,5.36326278]
[1760297816685,3.3652,4132.0,4130.8,3.23499565]
[1760297816884,3.3652,4132.0,4131.9,0.8765]
[1760297816885,0.2548,4132.0,4131.9,0.8765]
[1760297817781,0.25687804,4132.0,4131.9,0.8765]
[1760297818684,0.63727804,4132.0,4131.9,0.8765]
[1760297820392,0.00207804,4132.0,4131.9,1.9518263]
[1760297820587,0.00207804,4132.0,4131.9,2.3871463]
[1760297820786,4.2974,4133.0,4132.9,0.6233]
[1760297820988,3.8978,4133.0,4132.9,0.8765]
[1760297821381,4.14,4133.0,4132.9,0.3837]
[1760297821683,4.14,4133.0,4132.0,0.1501]
[1760297821684,0.43549,4130.3,4129.3,3.64339]
[1760297821987,0.43549,4130.3,4128.6,1.08916]
[1760297821988,0.5378,4129.5,4129.4,0.69284826]
[1760297822178,0.5378,4129.5,4128.8,3.2078]
[1760297822491,0.3804,4129.2,4128.9,0.69284826]
[1760297822690,0.38330412,4129.2,4128.9,0.69559879]
[1760297823182,0.00290412,4129.2,4128.9,0.00275053]
[1760297823388,0.00290412,4129.2,4129.0,0.69284826]
[1760297823592,0.00290412,4129.2,4129.1,0.3642]
[1760297825396,0.82231412,4129.2,4129.0,1.05704826]
[1760297826194,52.233,4143.1,4129.0,1.05704826]
[1760297826195,0.1574,4130.0,4129.1,0.69284826]
[1760297826388,0.5412,4130.0,4129.3,3.572]
[1760297826990,0.3838,4130.0,4129.5,0.3642]
[1760297827287,0.00170661,4130.0,4129.6,0.69284826]
[1760297827594,0.83102661,4130.0,4129.7,0.3642]
[1760297827788,0.3838,4129.9,4129.7,0.3642]
[1760297827983,0.44722661,4130.0,4129.8,4.70037826]
[1760297827984,0.01170661,4130.0,4129.8,4.70037826]
[1760297828186,0.01170661,4130.0,4129.9,0.3642]
[1760297828390,3.2078,4130.9,4130.1,0.3952]
[1760297828391,3.34587835,4130.9,4130.1,0.3952]
[1760297828589,2.91045835,4130.9,4130.5,0.153]
[1760297828786,2.91045835,4130.9,4130.6,0.3952]
[1760297828989,3.2078,4131.6,4130.8,0.3952]
[1760297829196,3.2078,4131.6,4131.5,0.5482]
[1760297829392,3.20959651,4131.6,4131.5,0.5482]
[1760297829592,0.00179651,4131.6,4131.5,0.5482]
[1760297830896,0.00179651,4131.6,4131.0,0.3952]
[1760297830897,0.4354,4131.2,4131.0,0.3952]
[1760297831093,0.3838,4131.1,4131.0,0.3952]
[1760297831295,0.1671,4131.5,4130.5,3.3608]
[1760297831492,0.43543,4130.9,4130.6,0.3952]
[1760297831792,0.3838,4131.4,4128.9,0.00275053]
[1760297831793,0.43561,4129.1,4128.9,0.00275053]
[1760297831994,3.2078,4129.1,4128.9,0.00275053]
[1760297832194,3.64341,4129.1,4128.9,0.00275053]
[1760297833699,3.64341,4129.1,4129.0,0.5482]
[1760297835197,3.64341,4129.1,4129.0,0.06036]
[1760297835594,3.64341,4129.1,4129.0,0.21336]
[1760297836498,3.64341,4129.1,4129.0,0.153]
[1760297836694,9.54163742,4129.1,4128.9,5.3e-07]
[1760297837198,5.45328395,4129.0,4128.9,5.3e-07]
[1760297837401,5.45328395,4129.0,4128.0,0.153]
[1760297837402,1.08912,4128.8,4128.0,0.153]
[1760297837598,3.2078,4128.1,4128.0,0.153]
[1760297837793,3.2078,4128.1,4128.0,0.5482]
[1760297838307,3.21031977,4128.1,4128.0,0.55064475]
[1760297838801,3.64603977,4128.1,4128.0,0.55064475]
[1760297839195,3.64603977,4128.1,4128.0,0.00244475]
[1760297839407,6.7962069,4128.1,4128.0,0.55064475]
[1760297839597,3.64603977,4128.1,4128.0,0.15544475]
[1760297839801,3.64603977,4128.1,4128.0,0.55064475]
[1760297843012,3.64603977,4128.1,4122.5,5.64436734]
[1760297843013,6.38143362,4128.1,4122.5,5.64436734]
[1760297843307,6.38143362,4128.1,4125.5,0.153]
[1760297843308,3.2078,4126.0,4125.5,0.153]
[1760297843500,3.2078,4127.2,4127.0,0.153]
[1760297843701,3.2078,4127.2,4127.1,0.3952]
[1760297844110,3.2078,4127.2,4127.1,0.39832082]
[1760297846209,3.2078,4127.7,4127.5,0.153]
[1760297846413,3.2078,4127.7,4127.6,0.3952]
[1760297850011,0.00251977,4128.1,4128.0,0.58873]
[1760297850205,3.5916,4129.3,4128.8,0.43564]
[1760297850511,0.3838,4129.2,4128.9,0.3952]
[1760297850710,0.3838,4129.2,4128.8,0.43564]
[1760297850711,0.3838,4129.2,4129.0,0.3952]
[1760297851107,0.00176613,4129.2,4129.1,0.3952]
[1760297852207,0.38556613,4129.2,4128.6,3.2078]
[1760297852411,0.00176613,4129.2,4128.6,3.603]
[1760297852711,0.00176613,4129.2,4127.6,4.80573403]
[1760297852712,10.89322,4128.1,4126.0,0.1774]
[1760297852907,3.2078,4127.2,4127.0,0.1774]
[1760297854816,3.2078,4127.2,4127.1,0.44282082]
[1760297862617,0.43567,4128.6,4128.1,0.4397]
[1760297862812,3.64345,4128.8,4128.1,0.4397]
[1760297863120,3.2078,4128.8,4128.7,0.4397]
[1760297863819,0.00176613,4129.2,4128.7,0.4397]
[1760297864709,0.00176613,4129.2,4129.1,0.468]
[1760297869829,0.00176613,4129.2,4128.6,3.6758]
[1760297870029,0.4325,4128.9,4128.6,3.2078]
[1760297870220,0.86813,4128.9,4128.6,3.2078]
[1760297870625,0.86813,4128.9,4128.7,0.468]
[1760297871431,0.86813,4128.9,4128.7,0.90365]
[1760297871626,0.4325,4128.9,4128.7,0.43565]
[1760297871832,0.86813,4128.9,4128.7,0.468]
[1760297872322,0.86813,4128.9,4128.6,3.64346]
[1760297872933,0.43564,4128.8,4128.7,0.468]
[1760297873131,3.2078,4128.8,4127.9,0.468]
[1760297873436,0.86816,4128.7,4127.8,0.468]
[1760297873634,0.43566,4128.6,4128.2,0.4357]
[1760297873835,0.4325,4128.6,4128.3,0.43569]
[1760297874029,0.4325,4128.6,4128.4,0.468]
[1760297874228,0.4325,4128.6,4128.3,0.43569]
[1760297874535,0.86817,4128.6,4128.4,0.468]
[1760297874933,0.86817,4128.6,4128.4,0.90369]
[1760297875233,0.4325,4128.6,4128.4,0.90369]
[1760297875733,0.43566,4128.6,4128.4,0.468]
[1760297875934,0.4325,4128.3,4127.7,10.164]
[1760297876133,0.4325,4128.1,4127.7,10.164]
[1760297876428,0.4357,4128.3,4127.8,0.468]
[1760297876628,0.4357,4128.3,4127.7,10.164]
[1760297876832,0.4325,4128.4,4127.7,10.164]
[1760297877035,0.43572,4128.1,4127.8,0.90375]
[1760297877232,0.43572,4128.1,4127.8,0.43575]
[1760297877534,0.86823,4128.0,4127.9,0.468]
[1760297877928,0.43572,4128.2,4127.9,0.468]
[1760297878124,0.86822,4128.2,4127.9,0.43574]
[1760297878330,0.4325,4128.2,4128.1,0.468]
[1760297881241,1.18261,4128.2,4128.1,1.0946]
[1760297881629,0.7469,4128.2,4128.1,1.0946]
[1760297882134,1.18261,4128.2,4128.1,1.0946]
[1760297882545,0.43578,4127.5,4127.2,0.468]
[1760297882745,1.1921,4127.3,4127.2,1.0582]
[1760297883038,0.73497,4127.7,4127.6,0.5902]
[1760297883344,1.19207,4127.7,4127.6,0.5902]
[1760297883640,0.7563,4127.7,4127.6,1.0232]
[1760297883840,1.19206,4127.7,4127.6,1.0232]
[1760297884245,1.19206,4127.7,4127.6,0.5902]
[1760297884444,1.48566,4127.7,4127.6,0.5902]
[1760297884630,1.48566,4127.7,4127.6,0.2973]
[1760297886342,3.2078,4127.8,4127.6,0.5902]
[1760297886538,2.17980613,4129.2,4127.1,0.00312082]
[1760297886539,3.2078,4128.3,4128.2,0.5902]
[1760297886844,3.6435,4128.3,4128.2,1.0232]
[1760297887045,3.2078,4128.3,4128.2,1.0232]
[1760297887243,3.2078,4128.3,4128.2,1.45891]
[1760297887548,3.2078,4128.3,4128.2,1.0232]
[1760297888041,3.2078,4128.3,4128.2,1.45891]
[1760297888446,3.2078,4128.3,4128.2,1.0232]
[1760297889845,3.6435,4128.3,4128.2,1.0232]
[1760297890235,3.2078,4128.3,4128.2,1.0232]
[1760297890640,3.2078,4128.3,4128.2,1.45891]
[1760297890842,0.45886613,4129.2,4128.8,0.86864]
[1760297891042,1.19367613,4129.2,4129.1,1.0232]
[1760297891242,0.75806613,4129.2,4129.1,1.0232]
[1760297892440,1.19366613,4129.2,4129.1,1.0232]
[1760297893042,1.48726613,4129.2,4129.1,0.5902]
[1760297893347,0.8928,4128.3,4128.0,0.433]
[1760297893549,1.192,4128.3,4128.2,1.0232]
[1760297895048,1.0499,4127.9,4127.8,0.5902]
[1760297895243,1.0499,4127.9,4127.8,0.2973]
[1760297895741,1.48564,4127.9,4127.8,0.2973]
[1760297896751,4.69344,4127.9,4127.8,0.2973]
[1760297897748,0.7563,4127.6,4127.5,1.0232]
[1760297897946,3.2078,4127.9,4127.5,1.0232]
[1760297897947,3.9641,4127.9,4127.8,0.5902]
[1760297898952,4.69344,4127.9,4127.8,0.5902]
[1760297899652,4.39984,4127.9,4127.8,1.0232]
[1760297899845,3.64354,4127.9,4127.8,1.0232]
[1760297900042,3.2078,4127.9,4127.8,1.0232]
[1760297900852,3.6649,4127.9,4127.8,1.0232]
[1760297901451,3.9641,4127.9,4127.8,1.0232]
[1760297901647,4.39984,4127.9,4127.8,1.0232]
[1760297902548,4.69344,4127.9,4127.8,0.5902]
[1760297904354,0.43581,4127.2,4126.9,2.99472714]
[1760297904559,0.61383,4127.0,4126.9,2.99472714]
[1760297904750,0.5928,4126.3,4126.2,13.45502714]
[1760297904945,1.0499,4126.3,4126.2,13.45502714]
[1760297905550,1.05193142,4126.3,4126.2,10.75498641]
[1760297905856,0.00203142,4126.3,4126.2,11.18798641]
[1760297906645,0.00203142,4126.3,4126.2,14.19409501]
[1760297907455,0.00203142,4126.3,4126.2,11.18798641]
[1760297908058,0.75833142,4126.3,4126.2,11.18798641]
[1760297908957,0.00203142,4126.3,4126.2,11.18798641]
[1760297909153,1.05193142,4126.3,4126.2,10.16478641]
[1760297909658,1.05193142,4126.3,4126.2,0.00178641]
[1760297912357,1.05193142,4126.3,4124.4,1.09026]
[1760297912358,0.7563,4124.7,4124.6,4.0293086]
[1760297912552,0.7563,4125.0,4124.9,1.0232]
[1760297912856,1.0499,4125.0,4124.9,0.5902]
[1760297913362,1.0302,4124.6,4124.5,0.3108]
[1760297913658,0.594,4124.9,4124.5,0.45358786]
[1760297913848,1.0302,4124.6,4124.5,0.00208786]
[1760297914556,1.0302,4124.6,4124.5,0.31288786]
[1760297915460,1.4663,4124.6,4124.5,0.00208786]
[1760297915955,4.6741,4124.6,4124.5,0.00208786]
[1760297916354,0.4362,4123.8,4123.7,3.2078]
[1760297916552,0.299,4123.3,4123.2,0.55332713]
[1760297916856,1.0302,4123.3,4123.2,0.55332713]
[1760297917050,0.4362,4123.3,4123.2,1.31592713]
[1760297917256,0.299,4123.4,4123.3,1.0734]
[1760297917465,4.238,4123.4,4123.3,0.3108]
[1760297917658,4.67651959,4123.4,4123.2,0.24488942]
[1760297918454,4.08251959,4123.4,4123.2,0.24488942]